fUSD/lending_fUSD_20240804
["ID","MTS","AMOUNT","RATE_DAILY","PERIOD"]
[334100118,1722766285266,-725.35,0.00024657,9]
[334100119,1722766285275,-500.0,0.00024657,9]
[334100120,1722766285285,-725.35,0.00024657,9]
[334100121,1722766285295,-1234.79,0.00024657,9]
[334100122,1722766285305,-508.75976153,0.00024657,9]
[334100123,1722766285315,-725.35,0.00024657,9]
[334100124,1722766285324,-500.0,0.00024657,9]
[334100125,1722766285334,-1234.79,0.00024657,9]
[334100126,1722766285344,-500.0,0.00024657,9]
[334100127,1722766285353,-725.35,0.00024657,9]
[334100128,1722766285363,-500.0,0.00024657,9]
[334100129,1722766285372,-1234.79,0.00024657,9]
[334100130,1722766285382,-500.0,0.00024657,9]
[334100131,1722766285391,-725.35,0.00024657,9]
[334100132,1722766285401,-500.0,0.00024657,9]
[334100133,1722766285411,-606.65379966,0.00024657,9]
[334100134,1722766288069,-628.13620034,0.00024657,9]
[334100135,1722766288079,-500.0,0.00024657,9]
[334100136,1722766288089,-725.35,0.00024657,9]
[334100137,1722766288099,-500.0,0.00024657,9]
[334100138,1722766288108,-943.85102838,0.00024657,9]
[334100139,1722766288122,-290.93897162,0.00024657,9]
[334100140,1722766288132,-500.0,0.00024657,9]
[334100141,1722766288141,-500.0,0.00024657,9]
[334100142,1722766288151,-725.35,0.00024657,9]
[334100143,1722766288160,-1234.79,0.00024657,9]
[334100144,1722766288168,-500.0,0.00024657,9]
[334100145,1722766288177,-48.92102138,0.00024657,9]
[334100146,1722766288192,-451.07897862,0.00024657,9]
[334100147,1722766288201,-500.0,0.00024657,9]
[334100148,1722766288211,-1234.79,0.00024657,9]
[334100149,1722766288221,-500.0,0.00024657,9]
[334100150,1722766288231,-57.57096138,0.00024657,9]
[334100151,1722766288244,-442.42903862,0.00024657,9]
[334100152,1722766288254,-500.0,0.00024657,9]
[334100153,1722766288263,-188.35061011,0.00024657,9]
[334100154,1722766288283,-536.99938989,0.00024657,9]
[334100155,1722766288293,-1234.79,0.00024657,9]
[334100156,1722766288303,-231.67186379,0.00024657,9]
[334100157,1722766288315,-268.32813621,0.00024657,9]
[334100158,1722766288324,-501.12159858,0.00024657,9]
[334100159,1722766288334,-65.60018148,0.00024657,9]
[334100160,1722766289043,-500.0,0.00024062,2]
[334100161,1722766289053,-77.2348,0.00024657,9]
[334100162,1722766289069,-582.51501852,0.00024657,9]
[334100163,1722766289079,-505.9959714,0.00024657,9]
[334100164,1722766289088,-382.33841848,0.00024657,9]
[334100165,1722766342999,200.0,0.00026134,120]
[334100166,1722766407374,200.0,0.00026834,120]
[334100170,1722767212425,-967.93767578,0.000108,2]
[334100183,1722767285655,2572.73851618,0.000108,2]
[334100187,1722767308927,170.38934769,0.000108,2]
[334100189,1722767345345,240.74766473,0.000108,2]
[334100195,1722767360689,160.0,0.00024823,120]
[334100196,1722767389332,412.86502835,0.000108,2]
[334100209,1722767431952,-300.0,0.00010899,2]
[334100210,1722767431961,-144.70366559,0.000109,2]
[334100211,1722767431993,-1143.23471344,0.000109,2]
[334100212,1722767432004,-887.33775655,0.000109,2]
[334100213,1722767432015,-7436.83739313,0.000109,2]
[334100214,1722767432027,-2140.01964299,0.000109,2]
[334100215,1722767432041,-1564.93957212,0.000109,2]
[334100216,1722767432051,-346.68267042,0.000109,2]
[334100217,1722767432060,-330.24945769,0.000109,2]
[334100218,1722767432070,-197.76517604,0.000109,2]
[334100219,1722767432081,-700.0,0.0001099,2]
[334100220,1722767432091,-154.51,0.0001099,2]
[334100221,1722767432102,-153.76988233,0.00010997,2]
[334100222,1722767432114,-585.18482309,0.00010999,2]
[334100223,1722767432123,-157.88606536,0.00010999,2]
[334100224,1722767432133,-3268.99270996,0.00011,2]
[334100225,1722767432157,-990.05544266,0.00011,2]
[334100226,1722767432169,-4833.61660523,0.00011,2]
[334100227,1722767432183,-234764.3885886,0.00011,2]
[334100234,1722767437961,-520.9101,0.00011,2]
[334100235,1722767437976,-1950.49742059,0.00011,2]
[334100236,1722767438001,-570.66823873,0.00011,2]
[334100237,1722767438014,-2752.47299442,0.00011,2]
[334100238,1722767438128,-577.99,0.00011,2]
[334100265,1722767440289,-567.70342406,0.00011,2]
[334100266,1722767440315,-5005.93905,0.00011,2]
[334100267,1722767440327,-159606.07582525,0.00011,2]
[334100268,1722767440339,-692596.7353599,0.00011,2]
[334100269,1722767440385,-2516.59179372,0.00011,2]
[334100287,1722767444247,-1144.36375668,0.00011,2]
[334100288,1722767444259,-802.06340159,0.00011,2]
[334100289,1722767444274,-3918.7910805,0.00011,2]
[334100290,1722767444285,-320.26401847,0.00011,2]
[334100291,1722767444301,-1963.95623651,0.00011,2]
[334100292,1722767445985,-3285.42924044,0.00011,2]
[334100294,1722767446122,-5599.79603265,0.00011,2]
[334100295,1722767446138,-768.85,0.00011,2]
[334100296,1722767446243,-264.56933083,0.00011,2]
[334100297,1722767446257,-850.0,0.00011,2]
[334100298,1722767446270,-346.76974357,0.00011,2]
[334100299,1722767446387,-228285.81777346,0.00011,2]
[334100302,1722767446405,-4940.94527216,0.00011,2]
[334100305,1722767446420,-432.77116256,0.00011,2]
[334100330,1722767494324,313.59586578,0.000108,2]
[334100331,1722767528452,5921.31955139,0.0001079,2]
[334100332,1722767770298,108868.0,0.00010781,2]
[334100335,1722768014778,200.85,0.00010351,2]
[334100338,1722768060810,150.86,9.656e-05,2]
[334100341,1722768186109,200.0,9.656e-05,2]
[334100342,1722768186502,200.0,9.656e-05,2]
[334100343,1722768187348,200.0,9.656e-05,2]
[334100344,1722768189407,200.0,9.656e-05,2]
[334100345,1722768189774,249.0,9.656e-05,2]
[334100347,1722768410135,-2086.59788065,0.00011,3]
[334100353,1722768468686,-213.62877644,0.000109,2]
[334100354,1722768468707,-261.37550512,0.000109,2]
[334100355,1722768468727,-330.24945769,0.000109,2]
[334100356,1722768468748,-10576.91985453,0.000109,2]
[334100357,1722768468769,-154.82,0.0001099,2]
[334100358,1722768468790,-1230.45007736,0.00010997,2]
[334100359,1722768468812,-150.0,0.00010999,2]
[334100360,1722768468833,-300.0,0.00010999,2]
[334100362,1722768483274,-55640.95844821,0.00011,2]
[334100379,1722768601356,207.81,9.812e-05,2]
[334100380,1722768611947,-228.70356698,0.000109,2]
[334100381,1722768611970,-300.0,0.00010999,2]
[334100382,1722768611996,-1980350.4068791,0.00011,2]
[334100383,1722768612019,-550.0,0.00011,2]
[334100384,1722768613881,154.82,0.0001099,2]
[334100404,1722768632055,-2727.84956445,0.00011105,2]
[334100405,1722768632067,-296.91091013,0.00011105,2]
[334100406,1722768632076,-236.44130371,0.00011161,2]
[334100407,1722768632086,-155.0,0.00011161,2]
[334100408,1722768632095,-370.30384095,0.00011206,2]
[334100409,1722768632109,-367.42589668,0.00011324,2]
[334100410,1722768632119,-499.99,0.00011525,2]
[334100411,1722768632128,-250.0,0.00011583,2]
[334100412,1722768632139,-160.0,0.00011617,2]
[334100413,1722768632148,-250.0,0.00011671,2]
[334100414,1722768632158,-686.80078896,0.00011704,2]
[334100415,1722768632168,-440.0,0.0001173,2]
[334100416,1722768632178,-1062.76,0.00011851,2]
[334100417,1722768632188,-1027.71,0.00011889,2]
[334100418,1722768632199,-210.8550453,0.00011896,2]
[334100419,1722768632209,-1568.39641879,0.00011959,2]
[334100420,1722768632220,-1480.47,0.00012063,2]
[334100421,1722768632230,-207.81,0.00012076,2]
[334100422,1722768632240,-420.0,0.00012087,2]
[334100423,1722768632251,-178.44,0.00012125,2]
[334100424,1722768632261,-872.84016993,0.00012397,2]
[334100425,1722768632272,-10576.91985445,0.00012456,2]
[334100426,1722768632282,-151.32101212,0.00012501,2]
[334100427,1722768632293,-155.64309799,0.0001254,2]
[334100428,1722768632304,-155.12479422,0.00012681,2]
[334100429,1722768632314,-228.70356693,0.00012851,2]
[334100430,1722768632324,-600.0,0.00013,2]
[334100431,1722768632334,-300.0,0.00013,2]
[334100432,1722768632345,-160.0,0.0001307,2]
[334100433,1722768632355,-440.0,0.00013196,2]
[334100434,1722768632366,-587.0,0.00013282,2]
[334100435,1722768632376,-2707.23865276,0.00013333,2]
[334100436,1722768632387,-155.0,0.00013333,2]
[334100437,1722768632401,-522.42518221,0.00013333,2]
[334100438,1722768632411,-200.0,0.00013699,2]
[334100439,1722768632421,-2751.0,0.00013699,2]
[334100440,1722768632431,-1869.68621,0.0001386,2]
[334100441,1722768632442,-349802.60716,0.000139,2]
[334100442,1722768632453,-1869.68621,0.0001397,2]
[334100443,1722768632463,-150.18,0.00013973,2]
[334100444,1722768632475,-255.28,0.00013973,2]
[334100445,1722768632484,-10576.91985445,0.00014011,2]
[334100446,1722768632494,-1869.68622,0.0001412,2]
[334100447,1722768632504,-1869.68621,0.0001428,2]
[334100448,1722768632513,-207.81,0.0001434,2]
[334100449,1722768632523,-1869.68622,0.0001444,2]
[334100450,1722768632532,-160.0,0.00014522,2]
[334100451,1722768632542,-1869.68621,0.0001459,2]
[334100452,1722768632551,-823.0,0.00014595,2]
[334100453,1722768632560,-440.0,0.00014662,2]
[334100454,1722768632570,-1601.42277021,0.00014988,2]
[334100455,1722768632580,-650.0,0.00015,2]
[334100456,1722768632589,-180.0,0.00015523,2]
[334100457,1722768632599,-10576.91985445,0.00015567,2]
[334100458,1722768632609,-160.0,0.00015974,2]
[334100460,1722768632619,-819.0,0.00016039,2]
[334100462,1722768632629,-440.0,0.00016129,2]
[334100464,1722768632638,-1803.14586553,0.00016232,2]
[334100466,1722768632648,-1803.14586553,0.00016232,2]
[334100467,1722768632657,-844.0,0.000163,3]
[334100468,1722768632667,-160.0,0.00016549,2]
[334100469,1722768632677,-207.81,0.00016604,2]
[334100470,1722768632687,-5220.93348915,0.00016799,7]
[334100471,1722768632697,-5471.71748295,0.00016952,2]
[334100472,1722768632707,-1762.83385166,0.00017004,2]
[334100473,1722768632717,-10576.91985445,0.00017122,2]
[334100474,1722768632727,-718.31999166,0.00017259,2]
[334100475,1722768632737,-5000.0,0.0001738,2]
[334100476,1722768632746,-155.0,0.0001738,2]
[334100477,1722768632755,-155.0,0.0001738,2]
[334100478,1722768632765,-493.26052295,0.0001738,2]
[334100479,1722768632775,-160.0,0.00017426,2]
[334100480,1722768632785,-437.00887505,0.00017533,2]
[334100481,1722768632795,-440.0,0.00017595,2]
[334100482,1722768632805,-679.64358466,0.00018,2]
[334100483,1722768632814,-160.0,0.00018617,2]
[334100484,1722768632824,-10576.91985445,0.00018678,2]
[334100485,1722768632833,-207.81,0.00018868,2]
[334100486,1722768632843,-1005.02965096,0.00019239,2]
[334100487,1722768632853,-328.00522683,0.0001924,2]
[334100488,1722768632862,-277.04260506,0.0001924,2]
[334100489,1722768632872,-446.17024212,0.0001924,2]
[334100490,1722768632881,-535.56201513,0.00019319,2]
[334100491,1722768632891,-255.52800794,0.00019387,2]
[334100492,1722768632901,-535.57210001,0.00019398,2]
[334100493,1722768632910,-623.87590211,0.00019398,2]
[334100494,1722768632919,-1031.81,0.00019535,2]
[334100495,1722768632929,-440.65099843,0.00019725,2]
[334100496,1722768632938,-980.65718379,0.0001989,2]
[334100497,1722768632948,-528.07635657,0.00019899,2]
[334100498,1722768632964,-1526.79825881,0.0002,3]
[334100499,1722768632974,-158.84273734,0.00020191,2]
[334100500,1722768632983,-10576.91985445,0.00020233,2]
[334100501,1722768632993,-255.28,0.00020447,2]
[334100502,1722768633002,-160.0,0.00020686,2]
[334100503,1722768633012,-2384.51677582,0.00020999,2]
[334100504,1722768633022,-547.40182525,0.00020999,2]
[334100505,1722768633032,-225.57076581,0.00021,2]
[334100506,1722768633041,-207.81,0.00021132,2]
[334100507,1722768633051,-9415.39,0.000213,2]
[334100508,1722768633061,-873.3339271,0.00021658,2]
[334100509,1722768633071,-10576.91985445,0.00021789,2]
[334100510,1722768633081,-200.0,0.00021914,2]
[334100511,1722768633091,-215.15,0.00021918,2]
[334100512,1722768633101,-150.41,0.00021918,2]
[334100513,1722768633110,-795.51608512,0.00022,2]
[334100514,1722768633120,-1000.0,0.00022619,2]
[334100515,1722768633129,-160.0,0.00022754,2]
[334100516,1722768633139,-150.18,0.00022759,2]
[334100517,1722768633148,-150.41,0.00022831,2]
[334100518,1722768633158,-200.0,0.00023,2]
[334100519,1722768633168,-3000.0,0.00023,2]
[334100520,1722768633177,-180.0,0.00023205,2]
[334100521,1722768633187,-180.0,0.00023285,2]
[334100522,1722768633196,-10576.91985445,0.00023344,2]
[334100523,1722768633206,-207.81,0.00023395,2]
[334100524,1722768633215,-150.0,0.0002344,2]
[334100525,1722768633225,-428.4,0.0002344,2]
[334100526,1722768633235,-712.23,0.0002344,2]
[334100527,1722768633245,-425.96,0.0002344,2]
[334100528,1722768633254,-425.96,0.0002344,2]
[334100529,1722768633263,-151.06,0.0002344,2]
[334100530,1722768633273,-425.96,0.0002344,2]
[334100531,1722768633283,-425.96,0.0002344,2]
[334100532,1722768633293,-150.41,0.00023744,2]
[334100533,1722768633304,-9415.39,0.000238,7]
[334100534,1722768633314,-150.0,0.00024,9]
[334100535,1722768633324,-500.0,0.00024027,2]
[334100536,1722768633334,-500.0,0.00024036,2]
[334100537,1722768633344,-500.0,0.00024045,2]
[334100538,1722768633354,-500.0,0.00024054,2]
[334100539,1722768633364,-500.0,0.00024054,2]
[334100540,1722768633375,-500.0,0.00024062,2]
[334100541,1722768633385,-500.0,0.00024071,2]
[334100542,1722768633397,-500.0,0.0002408,2]
[334100543,1722768633408,-500.0,0.00024089,2]
[334100544,1722768633418,-500.0,0.00024098,2]
[334100545,1722768633428,-500.0,0.00024106,2]
[334100546,1722768633439,-500.0,0.00024106,2]
[334100547,1722768633454,-500.0,0.00024115,2]
[334100548,1722768633464,-500.0,0.00024115,2]
[334100549,1722768633475,-500.0,0.00024124,2]
[334100550,1722768633486,-500.0,0.00024124,2]
[334100551,1722768633495,-162989.27,0.00024257,6]
[334100552,1722768633504,-395.0,0.000243,2]
[334100553,1722768633514,-1500.0,0.00024418,2]
[334100554,1722768633525,-150.0,0.00024452,2]
[334100555,1722768633610,-250.0,0.00024557,2]
[334100556,1722768633620,-213.62877643,0.00024557,2]
[334100557,1722768633629,-197.76517603,0.00024557,2]
[334100558,1722768633639,-606.05748009,0.000246,9]
[334100559,1722768633648,-494.0,0.000246,8]
[334100560,1722768633657,-256.0,0.000246,2]
[334100561,1722768633666,-256.0,0.000246,2]
[334100562,1722768633675,-716.0,0.000246,12]
[334100563,1722768633685,-48690.24278291,0.000246,2]
[334100564,1722768633694,-15219.60249017,0.00024639,2]
[334100565,1722768633704,-210.73709247,0.00024656,2]
[334100566,1722768633714,-2631.10181762,0.00024656,2]
[334100567,1722768633723,-2324.57784449,0.00024657,2]
[334100568,1722768633732,-151.0,0.00024657,2]
[334100569,1722768633741,-242.947396,0.00024657,9]
[334100570,1722768633751,-500.0,0.00024657,9]
[334100571,1722768633760,-500.0,0.00024657,9]
[334100572,1722768633769,-500.0,0.00024657,9]
[334100573,1722768633778,-500.0,0.00024657,9]
[334100574,1722768633787,-500.0,0.00024657,9]
[334100575,1722768633796,-500.0,0.00024657,9]
[334100576,1722768633806,-500.0,0.00024657,9]
[334100577,1722768633815,-500.0,0.00024657,9]
[334100578,1722768633825,-500.0,0.00024657,9]
[334100579,1722768633834,-500.0,0.00024657,9]
[334100580,1722768633843,-543.13176141,0.00024657,9]
[334100581,1722768633852,-500.0,0.00024657,9]
[334100582,1722768633861,-500.0,0.00024657,9]
[334100583,1722768633871,-525.34194633,0.00024657,9]
[334100584,1722768633880,-500.0,0.00024657,9]
[334100585,1722768633890,-500.0,0.00024657,9]
[334100586,1722768633899,-500.0,0.00024657,9]
[334100587,1722768633908,-501.36406017,0.00024657,9]
[334100588,1722768633918,-500.0,0.00024657,9]
[334100589,1722768633928,-500.0,0.00024657,9]
[334100590,1722768633937,-500.0,0.00024657,9]
[334100591,1722768633947,-500.0,0.00024657,9]
[334100592,1722768633955,-500.0,0.00024657,9]
[334100593,1722768633964,-500.0,0.00024657,9]
[334100594,1722768633974,-500.65387857,0.00024657,9]
[334100595,1722768633983,-500.0,0.00024657,9]
[334100596,1722768633992,-500.0,0.00024657,9]
[334100597,1722768634001,-500.0,0.00024657,9]
[334100598,1722768634010,-458.21002069,0.00024657,9]
[334100599,1722768634020,-500.0,0.00024657,9]
[334100600,1722768634029,-340.01078892,0.00024657,9]
[334100601,1722768634038,-500.0,0.00024657,9]
[334100602,1722768634047,-500.0,0.00024657,9]
[334100603,1722768634057,-500.0,0.00024657,9]
[334100604,1722768634066,-500.0,0.00024657,9]
[334100605,1722768634075,-500.0,0.00024657,9]
[334100606,1722768634084,-500.0,0.00024657,9]
[334100607,1722768634094,-500.0,0.00024657,9]
[334100608,1722768634103,-500.0,0.00024657,9]
[334100609,1722768634112,-500.0,0.00024657,9]
[334100610,1722768634122,-500.48412945,0.00024657,9]
[334100611,1722768634132,-500.0,0.00024657,9]
[334100612,1722768634141,-500.0,0.00024657,9]
[334100613,1722768634151,-500.0,0.00024657,9]
[334100614,1722768634160,-500.0,0.00024657,9]
[334100615,1722768634169,-500.0,0.00024657,9]
[334100616,1722768634179,-500.0,0.00024657,9]
[334100617,1722768634188,-500.0,0.00024657,9]
[334100618,1722768634198,-500.0,0.00024657,9]
[334100619,1722768634208,-500.0,0.00024657,9]
[334100620,1722768634218,-174.27535277,0.00024657,9]
[334100621,1722768634227,-500.0,0.00024657,9]
[334100622,1722768634237,-500.0,0.00024657,9]
[334100623,1722768634246,-500.0,0.00024657,9]
[334100624,1722768634255,-500.0,0.00024657,9]
[334100625,1722768634265,-500.0,0.00024657,9]
[334100626,1722768634274,-500.0,0.00024657,9]
[334100627,1722768634284,-500.0,0.00024657,9]
[334100628,1722768634294,-500.0,0.00024657,9]
[334100629,1722768634303,-500.0,0.00024657,9]
[334100630,1722768634313,-500.0,0.00024657,9]
[334100631,1722768634322,-500.0,0.00024657,9]
[334100632,1722768634331,-500.0,0.00024657,9]
[334100633,1722768634341,-500.0,0.00024657,9]
[334100634,1722768634351,-500.0,0.00024657,9]
[334100635,1722768634360,-500.0,0.00024657,9]
[334100636,1722768634369,-500.0,0.00024657,9]
[334100637,1722768634379,-500.0,0.00024657,9]
[334100638,1722768634390,-500.0,0.00024657,9]
[334100639,1722768634403,-500.0,0.00024657,9]
[334100640,1722768634412,-500.0,0.00024657,9]
[334100641,1722768634421,-500.0,0.00024657,9]
[334100642,1722768634431,-500.0,0.00024657,9]
[334100643,1722768634442,-500.0,0.00024657,9]
[334100644,1722768634453,-500.0,0.00024657,9]
[334100645,1722768634462,-500.0,0.00024657,9]
[334100646,1722768634473,-300.0,0.00024657,9]
[334100647,1722768634483,-300.0,0.00024657,9]
[334100648,1722768634492,-500.0,0.00024657,9]
[334100649,1722768634501,-500.0,0.00024657,9]
[334100650,1722768634511,-500.0,0.00024657,9]
[334100651,1722768634522,-500.0,0.00024657,9]
[334100652,1722768634540,-500.0,0.00024657,9]
[334100653,1722768634559,-500.0,0.00024657,9]
[334100654,1722768634571,-202.88818194,0.00024657,9]
[334100655,1722768634581,-237.38113442,0.00024657,9]
[334100656,1722768634591,-500.0,0.00024657,9]
[334100657,1722768634600,-500.0,0.00024657,9]
[334100658,1722768634610,-500.0,0.00024657,9]
[334100659,1722768634619,-500.0,0.00024657,9]
[334100660,1722768634628,-500.0,0.00024657,9]
[334100661,1722768634637,-501.68770806,0.00024657,9]
[334100662,1722768634646,-500.0,0.00024657,9]
[334100663,1722768634656,-500.0,0.00024657,9]
[334100664,1722768634665,-500.0,0.00024657,9]
[334100665,1722768634674,-500.93128445,0.00024657,9]
[334100666,1722768634683,-500.0,0.00024657,9]
[334100667,1722768634692,-500.0,0.00024657,9]
[334100668,1722768634708,-500.0,0.00024657,9]
[334100669,1722768634717,-500.0,0.00024657,9]
[334100670,1722768634727,-500.0,0.00024657,9]
[334100671,1722768634736,-500.0,0.00024657,9]
[334100672,1722768634745,-315.65281008,0.00024657,9]
[334100673,1722768634754,-500.0,0.00024657,9]
[334100674,1722768634763,-500.0,0.00024657,9]
[334100675,1722768634772,-500.0,0.00024657,9]
[334100676,1722768634782,-500.0,0.00024657,9]
[334100677,1722768634791,-500.0,0.00024657,9]
[334100678,1722768634801,-501.92287413,0.00024657,9]
[334100679,1722768634810,-613.86335529,0.00024657,9]
[334100680,1722768634820,-500.0,0.00024657,9]
[334100681,1722768634829,-500.0,0.00024657,9]
[334100682,1722768634839,-500.0,0.00024657,9]
[334100683,1722768634848,-151.0,0.00024657,7]
[334100684,1722768634858,-151.0,0.00024657,7]
[334100685,1722768634867,-234.988467,0.00024657,7]
[334100686,1722768634876,-500.0,0.00024657,9]
[334100687,1722768634886,-500.0,0.00024657,9]
[334100688,1722768634895,-500.0,0.00024657,9]
[334100689,1722768634904,-500.0,0.00024657,9]
[334100690,1722768634914,-500.0,0.00024657,9]
[334100691,1722768634924,-648.0290771,0.00024657,9]
[334100692,1722768634933,-500.0,0.00024657,9]
[334100693,1722768634943,-500.0,0.00024657,9]
[334100694,1722768634953,-500.0,0.00024657,9]
[334100695,1722768634962,-500.0,0.00024657,9]
[334100696,1722768634971,-505.17281271,0.00024657,9]
[334100697,1722768634981,-500.0,0.00024657,9]
[334100698,1722768634990,-500.0,0.00024657,9]
[334100699,1722768635000,-500.0,0.00024657,9]
[334100700,1722768635009,-500.0,0.00024657,9]
[334100701,1722768635018,-559.06705851,0.00024657,9]
[334100702,1722768635027,-500.0,0.00024657,9]
[334100703,1722768635037,-500.0,0.00024657,9]
[334100704,1722768635046,-500.0,0.00024657,9]
[334100705,1722768635055,-500.0,0.00024657,9]
[334100706,1722768635064,-500.0,0.00024657,9]
[334100707,1722768635074,-547.88035278,0.00024657,9]
[334100708,1722768635083,-500.0,0.00024657,9]
[334100709,1722768635093,-500.0,0.00024657,9]
[334100710,1722768635102,-500.0,0.00024657,9]
[334100711,1722768635111,-500.0,0.00024657,9]
[334100712,1722768635120,-500.0,0.00024657,9]
[334100713,1722768635129,-501.14817906,0.00024657,9]
[334100714,1722768635139,-503.07365497,0.00024657,9]
[334100715,1722768635148,-500.0,0.00024657,9]
[334100716,1722768635157,-500.0,0.00024657,9]
[334100717,1722768635166,-500.0,0.00024657,9]
[334100718,1722768635176,-500.0,0.00024657,9]
[334100719,1722768635185,-500.0,0.00024657,9]
[334100720,1722768635194,-500.0,0.00024657,9]
[334100721,1722768635204,-500.0,0.00024657,9]
[334100722,1722768635213,-500.0,0.00024657,9]
[334100723,1722768635222,-500.0,0.00024657,9]
[334100724,1722768635231,-500.0,0.00024657,9]
[334100725,1722768635240,-200.50092469,0.00024657,9]
[334100726,1722768635250,-500.0,0.00024657,9]
[334100727,1722768635259,-500.0,0.00024657,9]
[334100728,1722768635269,-500.0,0.00024657,9]
[334100729,1722768635278,-529.2590749,0.00024657,9]
[334100730,1722768635288,-500.0,0.00024657,9]
[334100731,1722768635299,-500.0,0.00024657,9]
[334100732,1722768635309,-500.0,0.00024657,9]
[334100733,1722768635318,-500.0,0.00024657,9]
[334100734,1722768635327,-500.0,0.00024657,9]
[334100735,1722768635337,-500.0,0.00024657,9]
[334100736,1722768635346,-500.0,0.00024657,9]
[334100737,1722768635357,-500.0,0.00024657,9]
[334100738,1722768635366,-500.0,0.00024657,9]
[334100739,1722768635377,-500.0,0.00024657,9]
[334100740,1722768635386,-500.0,0.00024657,9]
[334100741,1722768635400,-500.0,0.00024657,9]
[334100742,1722768635409,-500.0,0.00024657,9]
[334100743,1722768635419,-500.0,0.00024657,9]
[334100744,1722768635428,-500.0,0.00024657,9]
[334100745,1722768635439,-500.0,0.00024657,9]
[334100746,1722768635449,-500.0,0.00024657,9]
[334100747,1722768635459,-500.0,0.00024657,9]
[334100748,1722768635470,-500.0,0.00024657,9]
[334100749,1722768635479,-386.99572361,0.00024657,9]
[334100750,1722768635489,-500.0,0.00024657,9]
[334100751,1722768635498,-500.0,0.00024657,9]
[334100752,1722768635508,-500.0,0.00024657,9]
[334100753,1722768635518,-500.0,0.00024657,9]
[334100754,1722768635527,-500.0,0.00024657,9]
[334100755,1722768635537,-500.0,0.00024657,9]
[334100756,1722768635546,-500.0,0.00024657,9]
[334100757,1722768635558,-500.0,0.00024657,9]
[334100758,1722768635568,-500.0,0.00024657,9]
[334100759,1722768635577,-500.0,0.00024657,9]
[334100760,1722768635588,-500.0,0.00024657,9]
[334100761,1722768635598,-417.7216769,0.00024657,9]
[334100762,1722768635610,-500.0,0.00024657,9]
[334100763,1722768635620,-500.0,0.00024657,9]
[334100764,1722768635629,-500.0,0.00024657,9]
[334100765,1722768635640,-500.0,0.00024657,9]
[334100766,1722768635650,-500.0,0.00024657,9]
[334100767,1722768635660,-500.0,0.00024657,9]
[334100768,1722768635670,-571.58322238,0.00024657,9]
[334100769,1722768635679,-500.0,0.00024657,9]
[334100770,1722768635689,-500.0,0.00024657,9]
[334100771,1722768635699,-500.0,0.00024657,9]
[334100772,1722768635708,-500.0,0.00024657,9]
[334100773,1722768635717,-500.0,0.00024657,9]
[334100774,1722768635728,-395.14,0.00024657,9]
[334100775,1722768635738,-500.0,0.00024657,9]
[334100776,1722768635748,-500.0,0.00024657,9]
[334100777,1722768635759,-500.0,0.00024657,9]
[334100778,1722768635768,-500.0,0.00024657,9]
[334100779,1722768635779,-500.0,0.00024657,9]
[334100780,1722768635788,-500.0,0.00024657,9]
[334100781,1722768635799,-500.0,0.00024657,9]
[334100782,1722768635809,-500.0,0.00024657,9]
[334100783,1722768635818,-500.0,0.00024657,9]